bitfinex/quotes_ETHUSD_20251012
["timestamp","ask_amount","ask_price","bid_price","bid_amount"]
[1760230111978,20.47184,3736.7,3736.6,8.61]
[1760230112203,23.5735366,3736.7,3736.6,8.61]
[1760230112401,26.9800776,3736.7,3736.6,8.61]
[1760230112882,26.9800776,3736.7,3736.6,9.84]
[1760230113328,15.1988161,3736.7,3736.6,9.84]
[1760230113536,15.0400161,3736.7,3736.6,9.84]
[1760230114253,15.6243546,3736.7,3736.6,9.84]
[1760230114534,26.6811356,3736.7,3736.6,11.07]
[1760230114734,25.3186356,3736.7,3736.6,11.07]
[1760230114908,19.0419436,3736.7,3736.6,11.07]
[1760230115317,23.6389436,3736.7,3736.6,11.07]
[1760230115801,23.6389436,3736.7,3736.6,12.3]
[1760230116135,5.456746,3736.7,3736.6,12.3]
[1760230116335,14.3292101,3736.7,3736.6,12.3]
[1760230117344,26.9986141,3736.7,3736.6,13.53]
[1760230117505,24.2966141,3736.7,3736.6,13.53]
[1760230117705,19.5161141,3736.7,3736.6,13.53]
[1760230117943,18.9341141,3736.7,3736.6,13.53]
[1760230118106,5.865953,3736.7,3736.6,13.53]
[1760230118305,7.454127,3736.7,3736.6,13.53]
[1760230118500,7.081583,3736.7,3736.6,15.38273]
[1760230118739,7.081583,3736.7,3736.6,16.61273]
[1760230119306,7.081583,3736.7,3736.6,16.15843]
[1760230119520,10.686461,3736.7,3736.6,16.15843]
[1760230119751,9.686461,3736.7,3736.6,16.15843]
[1760230119946,9.686461,3736.7,3736.6,17.38843]
[1760230120351,9.686461,3736.7,3736.6,15.99]
[1760230120579,29.3582496,3736.7,3736.6,15.99]
[1760230120779,29.9918496,3736.7,3736.6,15.99]
[1760230120966,30.32502959,3736.7,3736.6,15.99]
[1760230121334,30.32502959,3736.7,3736.6,17.22]
[1760230121671,34.09759459,3736.7,3736.6,17.22]
[1760230122248,34.444527,3736.7,3736.6,17.22]
[1760230122663,34.86437905,3736.7,3736.6,17.22]
[1760230122861,34.86437905,3736.7,3736.6,18.45]
[1760230123965,34.86437905,3736.7,3736.6,18.452]
[1760230124165,34.86437905,3736.7,3736.6,19.682]
[1760230124365,33.55066665,3736.7,3736.6,19.682]
[1760230125238,33.88384664,3736.7,3736.6,19.682]
[1760230125675,4.59644461,3736.3,3736.2,0.002]
[1760230125858,32.54676261,3736.3,3736.2,0.002]
[1760230126059,33.13110111,3736.3,3736.2,0.002]
[1760230126377,33.88417804,3736.3,3736.2,0.002]
[1760230126564,34.23111045,3736.3,3736.2,0.002]
[1760230126875,34.86471045,3736.3,3736.2,0.002]
[1760230127077,3.31033117,3735.9,3735.4,9.842]
[1760230127282,34.05526766,3735.9,3735.4,9.842]
[1760230127461,6.26334966,3735.9,3735.4,9.842]
[1760230127661,34.21366766,3735.9,3735.4,9.842]
[1760230127863,34.63360278,3735.9,3735.4,9.842]
[1760230128542,34.63360278,3735.9,3735.8,4.922]
[1760230129444,34.00000278,3735.9,3735.8,4.922]
[1760230129765,33.66682279,3735.9,3735.8,4.922]
[1760230129980,33.66682279,3735.9,3735.8,6.152]
[1760230130340,34.00000278,3735.9,3735.8,6.152]
[1760230131576,34.63360278,3735.9,3735.8,7.382]
[1760230132941,34.63360278,3735.9,3735.8,8.612]
[1760230133575,6.68328478,3735.9,3735.8,8.612]
[1760230133760,34.63360278,3735.9,3735.8,8.612]
[1760230134443,34.63360278,3735.9,3735.8,9.842]
[1760230135645,33.1809358,3735.5,3735.4,9.842]
[1760230135929,34.09805429,3735.5,3735.4,11.072]
[1760230136627,34.51804658,3735.5,3735.4,11.072]
[1760230137132,34.51804658,3735.5,3735.4,12.302]
[1760230137937,29.18627009,3735.5,3735.4,12.302]
[1760230138497,9.09305809,3735.5,3735.4,13.532]
[1760230138732,14.11930309,3735.5,3735.4,13.532]
[1760230138910,16.03930309,3735.5,3735.4,13.532]
[1760230139103,13.424829,3735.7,3735.4,15.8692]
[1760230139557,14.837384,3735.5,3735.4,15.8692]
[1760230139848,16.639226,3735.5,3735.4,14.762]
[1760230140461,15.739226,3735.5,3735.4,14.762]
[1760230140662,16.673226,3735.5,3735.4,14.762]
[1760230140961,11.391613,3736.1,3735.4,15.1951]
[1760230141163,1.92,3736.4,3735.6,2.67694498]
[1760230141376,0.001,3736.2,3735.6,2.1779199]
[1760230141664,0.001,3736.2,3735.9,2.67666402]
[1760230141665,2.506137,3736.1,3735.9,2.67666402]
[1760230142026,15.367833,3736.0,3735.6,2.1779199]
[1760230142230,0.1336,3735.7,3735.4,15.992]
[1760230142570,1.92,3736.0,3735.4,15.992]
[1760230142771,10.091645,3736.0,3735.5,2.34333209]
[1760230142922,1.92,3735.7,3735.6,3.11003033]
[1760230143258,1.92,3736.0,3735.7,2.67686816]
[1760230143559,14.297672,3735.8,3735.7,3.10996816]
[1760230143753,14.297672,3735.8,3735.7,2.92502308]
[1760230143950,21.161934,3735.6,3735.4,17.222]
[1760230144272,22.337389,3735.5,3735.4,17.222]
[1760230144437,17.8076898,3735.5,3735.4,17.222]
[1760230144768,18.20331164,3735.5,3735.4,17.222]
[1760230144942,18.42217164,3735.5,3735.4,17.222]
[1760230145470,17.5245498,3735.5,3735.4,17.222]
[1760230145676,17.5245498,3735.5,3735.4,18.452]
[1760230145831,4.5970178,3735.5,3735.4,18.452]
[1760230146178,20.6483798,3735.5,3735.4,18.452]
[1760230146950,34.7556178,3735.5,3735.4,18.452]
[1760230147147,34.7556178,3735.5,3735.4,19.682]
[1760230148671,34.7556178,3735.5,3735.4,20.912]
[1760230149784,7.507913,3735.5,3735.4,20.912]
[1760230149949,19.4835228,3735.5,3735.4,22.142]
[1760230150150,19.6421228,3735.5,3735.4,22.142]
[1760230150384,20.0099113,3735.5,3735.4,22.142]
[1760230150680,20.34309129,3735.5,3735.4,22.142]
[1760230150882,20.0099113,3735.5,3735.4,22.142]
[1760230151037,34.7556178,3735.5,3735.4,22.142]
[1760230151237,34.5970178,3735.5,3735.4,22.142]
[1760230151543,14.4341758,3735.5,3735.4,23.372]
[1760230151771,11.757158,3735.5,3735.4,23.372]
[1760230151968,15.216722,3735.5,3735.4,23.372]
[1760230152341,7.3275,3735.5,3735.4,23.372]
[1760230152844,7.3275,3735.5,3735.4,24.602]
[1760230153043,12.810352,3735.5,3735.4,24.602]
[1760230153278,5.369698,3735.5,3735.4,24.602]
[1760230153481,5.359696,3735.5,3735.4,24.602]
[1760230154040,6.386669,3735.5,3735.4,25.832]
[1760230154715,15.469439,3736.1,3735.4,27.70767648]
[1760230154879,8.925705,3736.1,3735.6,2.67692256]
[1760230155070,10.741873,3736.1,3735.4,27.27457648]
[1760230155268,1.92,3735.8,3735.4,29.95165374]
[1760230155492,8.50275,3735.5,3735.4,29.95165374]
[1760230155692,5.919434,3735.5,3735.4,27.27457648]
[1760230155914,0.001,3736.2,3735.4,28.93767648]
[1760230156067,0.001,3736.2,3735.8,2.67673817]
[1760230156264,0.001,3736.2,3735.7,2.67685819]
[1760230156265,1.92,3736.0,3735.7,2.67685819]
[1760230156468,5.112058,3735.8,3735.7,2.67685819]
[1760230156883,0.001,3736.2,3735.8,2.6768028]
[1760230157104,2.610754,3735.9,3735.8,2.6768028]
[1760230157281,11.472297,3735.9,3735.8,3.1099028]
[1760230157793,20.047892,3735.9,3735.8,3.1099028]
[1760230158200,22.09282,3735.8,3735.7,1.23]
[1760230158402,22.58459999,3735.8,3735.7,1.23]
[1760230158611,15.89159149,3735.8,3735.7,2.46]
[1760230158791,0.70096849,3735.8,3735.7,2.46]
[1760230159119,21.1188295,3735.8,3735.7,2.46]
[1760230159330,16.1678295,3735.8,3735.7,2.46]
[1760230159924,19.9988295,3735.8,3735.7,3.69]
[1760230160628,22.83423232,3735.8,3735.7,3.69]
[1760230161022,25.61337032,3735.8,3735.7,3.69]
[1760230161230,23.05594032,3735.8,3735.7,4.92]
[1760230161741,20.2205375,3735.8,3735.7,4.92]
[1760230161948,19.276373,3735.8,3735.7,4.92]
[1760230162436,21.95317582,3735.8,3735.7,4.92]
[1760230162634,21.95317582,3735.8,3735.7,6.15]
[1760230163034,28.20325282,3735.8,3735.7,6.15]
[1760230163515,17.274304,3735.8,3735.7,6.15]
[1760230163939,5.462612,3735.8,3735.7,10.02162267]
[1760230164111,14.927344,3735.8,3735.7,7.38]
[1760230164310,14.327344,3735.8,3735.7,7.38]
[1760230164494,4.943864,3735.8,3735.7,7.38]
[1760230165203,6.820129,3735.8,3735.7,7.38]
[1760230165622,10.35650031,3735.8,3735.7,8.61]
[1760230166024,26.17863131,3735.8,3735.7,8.61]
[1760230166319,22.43032731,3735.8,3735.7,8.61]
[1760230166522,16.84541831,3735.8,3735.7,8.61]
[1760230166944,16.84541831,3735.8,3735.7,9.84]
[1760230167107,20.41444331,3735.8,3735.7,9.84]
[1760230167310,20.08126332,3735.8,3735.7,9.84]
[1760230167641,7.362412,3735.8,3735.7,9.84]
[1760230167813,7.100412,3735.8,3735.7,9.84]
[1760230168020,7.092767,3735.8,3735.7,9.84]
[1760230168543,7.092767,3735.8,3735.7,11.07]
[1760230169026,21.524155,3735.8,3735.7,11.07]
[1760230169227,24.35955782,3735.8,3735.7,11.07]
[1760230169426,25.06052631,3735.8,3735.7,11.07]
[1760230169944,25.06052631,3735.8,3735.7,12.3]
[1760230170116,31.67767531,3735.8,3735.7,12.3]
[1760230170317,26.10747431,3735.8,3735.7,12.3]
[1760230170519,25.58035931,3735.8,3735.7,12.3]
[1760230171044,5.45637131,3735.8,3735.7,12.3]
[1760230171248,26.59287631,3735.8,3735.7,13.53]
[1760230171431,25.67769632,3735.8,3735.7,13.53]
[1760230172251,27.29902832,3735.8,3735.7,13.53]
[1760230172615,27.29902832,3735.8,3735.7,14.76]
[1760230173166,16.69756882,3735.8,3735.7,14.76]
[1760230173362,9.071462,3735.8,3735.7,14.76]
[1760230173772,7.533546,3735.8,3735.7,14.76]
[1760230173936,7.533546,3735.8,3735.7,15.99]
[1760230174135,8.55148,3735.8,3735.7,15.99]
[1760230174737,7.89048,3735.8,3735.7,15.99]
[1760230175257,16.306168,3735.8,3735.7,17.22]
[1760230176167,16.87266,3735.8,3735.7,17.22]
[1760230176667,14.824538,3735.8,3735.7,18.45]
[1760230176865,10.641178,3735.8,3735.7,18.45]
[1760230177368,24.60206482,3735.8,3735.7,18.45]
[1760230177978,24.96985332,3735.8,3735.7,19.68]
[1760230178182,15.29868532,3735.8,3735.7,19.68]
[1760230178385,14.93089682,3735.8,3735.7,19.68]
[1760230178583,14.93189682,3735.8,3735.7,19.68]
[1760230179081,15.45828532,3735.8,3735.7,19.68]
[1760230179287,35.45737131,3735.8,3735.7,20.91]
[1760230179643,35.87730197,3735.8,3735.7,20.91]
[1760230179867,36.26342531,3735.8,3735.7,20.91]
[1760230180686,36.26342531,3735.8,3735.7,22.14]
[1760230182193,36.26342531,3735.8,3735.7,23.37]
[1760230182390,36.89702531,3735.8,3735.7,23.37]
[1760230182572,37.20395772,3735.8,3735.7,23.37]
[1760230183689,37.20395772,3735.8,3735.7,24.6]
[1760230184257,37.20395772,3735.8,3735.7,17.65513734]
[1760230184494,35.2306178,3735.5,3735.4,16.59360892]
[1760230184795,36.3971187,3735.5,3735.4,16.59360892]
[1760230185167,37.20333083,3735.5,3735.4,16.59360892]
[1760230186481,37.20333083,3735.5,3735.4,17.82360892]
[1760230186997,37.25554175,3735.5,3735.4,17.82360892]
[1760230187901,37.25554175,3735.5,3735.4,19.05360892]
[1760230189278,7.25554175,3735.5,3735.4,19.05360892]
[1760230189498,37.25554175,3735.5,3735.4,20.28360892]
[1760230189696,35.89500992,3735.5,3735.4,20.28360892]
[1760230189998,2.67700227,3735.6,3735.4,20.28360892]
[1760230190296,33.7375298,3735.5,3735.4,20.28360892]
[1760230190466,36.09018629,3735.5,3735.4,20.28360892]
[1760230190666,37.20329616,3735.5,3735.4,20.28360892]
[1760230190864,4.59823664,3733.8,3732.4,3.14791584]
[1760230191108,16.73806764,3733.8,3732.5,2.67915477]
[1760230191399,29.88952264,3733.8,3732.4,0.4687]
[1760230191607,3.31198011,3733.6,3733.5,3.2e-07]
[1760230191771,35.9494286,3733.6,3733.5,3.2e-07]
[1760230191972,36.41456101,3733.6,3733.5,3.2e-07]
[1760230192169,37.7190599,3733.6,3733.5,1.23000032]
[1760230192585,36.41456101,3733.6,3733.5,1.23000032]
[1760230192879,2.6788106,3733.0,3732.3,1.23]
[1760230193086,35.31625908,3733.0,3732.3,1.23]
[1760230193285,35.31625908,3733.0,3732.3,1.22921294]
[1760230193286,2.67924123,3732.4,3732.3,1.22921294]
[1760230193481,34.59924123,3732.4,3732.3,1.22921294]
[1760230193683,35.31668971,3732.4,3732.3,2.45921294]
[1760230193886,35.47488971,3732.4,3732.3,2.45921294]
[1760230195019,36.10848971,3732.4,3732.3,1.00467949]
[1760230195178,37.79690925,3732.4,3732.3,1.4e-07]
[1760230195371,1.92,3731.9,3731.7,3.69711816]
[1760230195613,32.57861275,3731.8,3731.7,3.69711816]
[1760230195814,35.64255325,3731.8,3731.7,3.69711816]
[1760230196204,31.61447425,3731.8,3731.7,3.69711816]
[1760230196382,32.96288125,3731.8,3731.7,4.92711816]
[1760230196583,36.06292633,3731.8,3731.7,4.92711816]
[1760230196918,23.90609933,3731.8,3731.7,4.92711816]
[1760230197413,6.86981066,3731.8,3731.7,4.92711816]
[1760230197618,32.73331966,3731.8,3731.7,4.92711816]
[1760230197815,30.05364766,3731.8,3731.7,6.15711816]
[1760230197992,16.797991,3732.0,3731.7,6.15711816]
[1760230198192,1.92,3731.9,3731.7,6.15711816]
[1760230198521,25.680844,3731.8,3731.7,6.15711816]
[1760230198684,24.720844,3731.8,3731.7,6.15711816]
[1760230199457,13.51893,3731.8,3731.7,7.38711816]
[1760230199582,14.318442,3731.8,3731.7,7.38711816]
[1760230199782,14.7027105,3731.8,3731.7,7.38711816]
[1760230200520,35.1439405,3731.8,3731.7,7.38711816]
[1760230200682,35.1439405,3731.8,3731.7,8.61711816]
[1760230200882,29.9693565,3731.8,3731.7,8.61711816]
[1760230201078,24.6877165,3731.8,3731.7,8.61711816]
[1760230201283,8.547191,3731.8,3731.7,9.47902998]
[1760230201482,13.84363,3731.8,3731.7,9.47902998]
[1760230201720,12.878548,3731.8,3731.7,9.47902998]
[1760230201922,12.878548,3731.8,3731.7,8.61711816]
[1760230202215,12.878548,3731.8,3731.7,9.84711816]
[1760230202419,13.2628165,3731.8,3731.7,9.84711816]
[1760230202618,25.7263135,3731.8,3731.7,9.84711816]
[1760230202919,15.6078145,3731.8,3731.7,9.84711816]
[1760230203240,12.052342,3731.8,3731.7,9.84711816]
[1760230203422,12.052342,3731.8,3731.7,11.07711816]
[1760230203718,28.373724,3731.8,3731.7,11.07711816]
[1760230204215,13.33282,3731.8,3731.7,11.07711816]
[1760230204380,11.844515,3731.8,3731.7,11.07711816]
[1760230204592,15.340216,3731.8,3731.7,11.07711816]
[1760230204791,14.436383,3731.8,3731.7,12.30711816]
[1760230205629,23.451106,3731.8,3731.7,12.30711816]
[1760230205809,23.9343745,3731.8,3731.7,12.30711816]
[1760230206007,26.94765925,3731.8,3731.7,12.30711816]
[1760230206201,26.94765925,3731.8,3731.7,13.53711816]
[1760230206623,35.41655325,3731.8,3731.7,13.53711816]
[1760230206927,32.35634085,3731.8,3731.7,13.53711816]
[1760230207632,35.62754085,3731.8,3731.7,13.53711816]
[1760230207835,2.806269,3731.8,3731.7,15.60206326]
[1760230208039,5.614052,3732.7,3731.7,18.28179764]
[1760230208222,1.92,3732.6,3731.8,2.67966492]
[1760230208397,5.612681,3732.3,3731.9,2.67959361]
[1760230208728,0.33361275,3732.7,3731.9,1.4353157]
[1760230208729,11.040503,3732.0,3731.9,1.4353157]
[1760230208928,9.123024,3731.8,3731.7,17.82480707]
[1760230209143,5.720514,3731.8,3731.7,19.05480707]
[1760230209434,6.898171,3732.6,3731.7,16.83206326]
[1760230209644,17.673933,3733.0,3732.0,2.67946608]
[1760230209939,26.119084,3733.1,3732.0,2.67946608]
[1760230210142,1.92,3732.8,3732.1,0.58161381]
[1760230210342,13.007451,3732.5,3732.1,0.58161381]
[1760230210494,1.92,3732.4,3732.1,1.23]
[1760230210699,8.33253,3732.2,3732.1,1.23]
[1760230210919,8.33253,3732.2,3732.1,1.687]
[1760230211110,1.92,3732.2,3732.1,4.6004566]
[1760230211500,0.43611275,3733.6,3732.1,4.6004566]
[1760230211501,2.39788,3733.5,3732.2,0.6336]
[1760230211813,2.39788,3733.5,3732.1,1.921]
[1760230211814,2.39788,3733.5,3732.7,0.6336]
[1760230212010,0.001,3733.6,3733.5,2.67845185]
[1760230212414,12.01618,3733.6,3733.5,2.67845185]
[1760230212734,10.39518,3733.6,3733.5,2.67845185]
[1760230212939,3.991611,3733.6,3733.5,2.67845185]
[1760230213236,0.001,3733.6,3733.5,3.67115443]
[1760230213446,0.001,3733.6,3733.5,5.53475443]
[1760230213601,0.001,3733.6,3733.5,4.90115443]
[1760230214766,0.001,3733.6,3733.5,6.13115443]
[1760230215570,16.683948,3733.6,3733.5,2.46]
[1760230216064,15.593737,3733.6,3733.5,3.69]
[1760230216366,7.663559,3733.6,3733.5,3.69]
[1760230216676,15.316274,3733.6,3733.5,3.69]
[1760230217023,10.868011,3733.6,3733.5,3.69]
[1760230217472,14.822052,3733.6,3733.5,4.92]
[1760230217631,14.921052,3733.6,3733.5,4.92]
[1760230218159,17.59943211,3733.6,3733.5,4.92]
[1760230218325,17.93945061,3733.6,3733.5,4.92]
[1760230218524,30.67814936,3733.6,3733.5,4.92]
[1760230218744,30.67814936,3733.6,3733.5,6.15]
[1760230219558,2.59463125,3733.6,3733.5,6.15]
[1760230219733,4.864159,3733.6,3733.5,6.15]
[1760230220053,4.864159,3733.6,3733.5,7.38]
[1760230220257,7.98155761,3733.6,3733.5,7.38]
[1760230220444,4.59845185,3733.5,3732.2,1.22926168]
[1760230220756,24.479157,3732.5,3732.2,1.22926168]
[1760230220929,24.322189,3732.3,3732.2,1.22926168]
[1760230221123,19.717945,3732.3,3732.2,1.22926168]
[1760230221323,10.51256,3732.3,3732.2,2.45926168]
[1760230221553,16.452885,3732.3,3732.2,2.45926168]
[1760230221732,16.452885,3732.3,3732.2,2.45009166]
[1760230221931,5.448304,3732.3,3732.2,2.45009166]
[1760230222465,4.682052,3732.3,3732.2,3.54305738]
[1760230223072,4.682052,3732.3,3732.2,7.45244219]
[1760230224363,4.682052,3732.3,3732.2,8.68244219]
[1760230225968,4.682052,3732.3,3732.2,9.91244219]
[1760230227629,4.682052,3732.3,3732.2,11.14244219]
[1760230227831,1.92,3732.3,3732.2,11.14244219]
[1760230229449,1.92,3732.3,3732.2,12.37244219]
[1760230230588,1.92,3732.3,3732.2,8.60009166]
[1760230230907,18.51219,3732.3,3732.2,9.83009166]
[1760230231712,12.689173,3732.3,3732.2,9.83009166]
[1760230232021,3.983044,3732.3,3732.2,12.96987647]
[1760230232240,3.983044,3732.3,3732.2,15.91132669]
[1760230232519,4.889855,3732.3,3732.2,15.91132669]
[1760230232704,1.92,3732.3,3732.2,15.91132669]
[1760230233499,0.67363125,3733.8,3732.2,16.54492669]
[1760230233708,4.480358,3733.5,3732.6,0.6336]
[1760230233910,3.067522,3733.3,3732.7,0.4604]
[1760230234234,0.001,3734.0,3733.2,2.67866709]
[1760230234235,5.602826,3733.5,3733.2,2.67866709]
[1760230234378,6.447051,3733.4,3733.3,3.40686205]
[1760230234575,6.447051,3733.4,3732.4,0.1336]
[1760230234780,13.255526,3733.1,3732.7,2.67902178]
[1760230235006,0.1336,3732.4,3732.3,0.4604]
[1760230235228,11.146795,3732.4,3732.3,0.4604]
[1760230235426,0.67363125,3733.1,3732.1,1.232]
[1760230235427,17.038028,3732.3,3732.1,1.232]
[1760230235915,7.847506,3732.3,3732.1,1.232]
[1760230236384,8.76937,3732.3,3732.2,13.52009166]
[1760230236891,3.935637,3732.3,3732.2,15.11502894]
[1760230237215,6.301087,3732.3,3732.2,17.79441375]
[1760230238208,3.935637,3732.3,3732.2,17.88987647]
[1760230238616,1.92,3732.3,3732.2,17.88987647]
[1760230238816,5.362377,3733.5,3732.8,2.67894963]
[1760230238980,0.001,3733.6,3733.3,2.67855372]
[1760230239179,0.001,3733.6,3733.1,2.67867011]
[1760230239180,11.947061,3733.5,3733.1,2.67867011]
[1760230239382,0.1336,3732.9,3732.6,0.6336]
[1760230239581,0.1336,3732.9,3732.8,3.31255413]
[1760230240112,0.1336,3732.9,3732.8,3.77295413]
[1760230240313,8.080028,3732.9,3732.4,0.4604]
[1760230240516,8.080028,3732.9,3732.2,14.75009166]
[1760230240517,0.1336,3732.9,3732.5,0.4604]
[1760230240719,0.1336,3732.5,3732.2,14.75009166]
[1760230240953,0.1336,3732.3,3732.2,18.06306721]
[1760230241114,0.1336,3732.3,3732.2,20.28403182]
[1760230241511,0.001,3733.6,3733.1,2.67868213]
[1760230241747,4.265693,3733.3,3733.1,2.67868213]
[1760230241951,1.92,3733.2,3733.1,2.67868213]
[1760230242248,1.92,3732.9,3732.5,0.4296]
[1760230242414,16.142227,3733.5,3732.6,3.10862979]
[1760230242611,1.92,3733.2,3732.7,2.67900938]
[1760230242916,1.92,3732.8,3732.7,3.10860938]
[1760230243117,1.92,3733.4,3732.7,3.10860938]
[1760230243428,11.466514,3733.1,3732.7,3.10860938]
[1760230243629,1.92,3733.0,3732.7,3.10860938]
[1760230243828,1.921,3733.6,3732.7,4.33860938]
[1760230244031,1.92,3733.4,3732.7,1.6596]
[1760230244226,1.92,3733.2,3732.7,1.23]
[1760230244427,1.92,3733.0,3732.7,1.23]
[1760230244754,13.251833,3732.8,3732.7,1.23]
[1760230244923,15.93078713,3732.8,3732.7,1.23]
[1760230245264,22.75889513,3732.8,3732.7,2.46]
[1760230245417,10.975451,3732.8,3732.7,2.46]
[1760230245623,0.001,3733.6,3732.7,2.46]
[1760230245624,1.92,3732.9,3732.7,3.2586]
[1760230245854,11.302748,3732.8,3732.7,2.829]
[1760230246325,11.962023,3732.8,3732.7,2.46]
[1760230246523,11.962023,3732.8,3732.7,3.69]
[1760230247457,10.770974,3732.8,3732.7,3.69]
[1760230247658,13.54892813,3732.8,3732.7,3.69]
[1760230247958,10.869974,3732.8,3732.7,3.69]
[1760230248116,10.869974,3732.8,3732.7,4.92]
[1760230248347,20.67974,3732.8,3732.7,4.92]
[1760230248551,23.35869413,3732.8,3732.7,4.92]
[1760230249087,20.32079663,3732.8,3732.7,4.92]
[1760230249286,25.73020963,3732.8,3732.7,4.92]
[1760230249599,21.39610163,3732.8,3732.7,6.15]
[1760230250415,35.37158538,3732.8,3732.7,6.15]
[1760230250707,36.00518538,3732.8,3732.7,6.15]
[1760230251001,36.00518538,3732.8,3732.7,7.38]
[1760230251299,6.00518538,3732.8,3732.7,7.38]
[1760230251464,36.00518538,3732.8,3732.7,7.38]
[1760230252607,36.00518538,3732.8,3732.7,8.61]
[1760230254081,35.37158538,3732.8,3732.7,9.84]
[1760230254407,35.03797263,3732.8,3732.7,9.84]
[1760230254813,35.03897263,3732.8,3732.7,9.84]
[1760230255412,35.03897263,3732.8,3732.7,11.07]
[1760230256621,35.03897263,3732.8,3732.7,12.3]
[1760230258107,4.610742,3732.8,3732.7,13.53]
[1760230258274,9.30869613,3732.8,3732.7,13.53]
[1760230258608,26.76812163,3732.8,3732.7,13.53]
[1760230259218,11.91813263,3732.8,3732.7,13.53]
[1760230259517,18.27057113,3732.8,3732.7,14.76]
[1760230259885,8.993405,3732.8,3732.7,14.76]
[1760230260079,8.34145013,3732.8,3732.7,14.76]
[1760230260493,34.69895413,3732.8,3732.7,14.76]
[1760230260715,33.94384813,3732.8,3732.7,14.76]
[1760230260910,34.28386663,3732.8,3732.7,15.99]
[1760230261417,5.03897263,3732.8,3732.7,15.99]
[1760230261622,33.99897063,3732.8,3732.7,15.99]
[1760230262292,33.99897063,3732.8,3732.7,17.22]
[1760230262478,35.03897263,3732.8,3732.7,17.22]
[1760230263108,35.4592455,3732.8,3732.7,17.22]
[1760230263335,12.018044,3732.8,3732.7,17.22]
[1760230263621,35.3602455,3732.8,3732.7,17.22]
[1760230263778,35.3602455,3732.8,3732.7,18.45]
[1760230263779,4.017627,3732.8,3732.7,18.45]
[1760230263978,2.097627,3732.8,3732.7,20.418]
[1760230264402,2.665316,3732.8,3732.7,20.8497]
[1760230264601,2.311316,3732.8,3732.7,23.5287259]
[1760230264787,0.001,3733.6,3732.9,2.67887637]
[1760230264788,7.089789,3733.5,3732.9,2.67887637]
[1760230265179,6.952798,3732.9,3732.8,2.67895088]
[1760230265376,1.92,3732.8,3732.7,18.45]
[1760230265611,19.281803,3732.8,3732.7,18.45]
[1760230265806,18.062198,3732.8,3732.7,18.45]
[1760230266180,20.84035213,3732.8,3732.7,18.45]
[1760230266516,28.26162713,3732.8,3732.7,18.45]
[1760230266719,28.26162713,3732.8,3732.7,19.68]
[1760230267024,28.60164563,3732.8,3732.7,19.68]
[1760230267403,16.34902863,3732.8,3732.7,19.68]
[1760230267603,16.85907163,3732.8,3732.7,19.68]
[1760230268016,16.85907163,3732.8,3732.7,20.91]
[1760230268633,35.03817263,3732.8,3732.7,20.91]
[1760230268937,35.4584435,3732.8,3732.7,20.91]
[1760230269524,35.03817263,3732.8,3732.7,22.14]
[1760230270054,35.37178538,3732.8,3732.7,22.14]
[1760230270905,35.37178538,3732.8,3732.7,23.37]
[1760230271154,36.00538538,3732.8,3732.7,11.07]
[1760230271312,35.23276945,3732.5,3732.4,1.23]
[1760230271512,35.9064007,3732.5,3732.4,1.23]
[1760230271734,36.0056007,3732.5,3732.4,1.23]
[1760230271926,36.27711643,3732.5,3732.4,1.23]
[1760230272121,35.23291302,3732.3,3732.2,14.75009166]
[1760230272442,36.00574427,3732.3,3732.2,14.75009166]
[1760230272643,6.00574427,3732.3,3732.2,14.75009166]
[1760230272811,36.00574427,3732.3,3732.2,14.75009166]
[1760230273640,36.00574427,3732.3,3732.2,15.98009166]
[1760230274545,36.81273713,3732.3,3732.2,15.98009166]
[1760230274755,1.92,3732.2,3731.7,4.03574616]
[1760230274922,35.451772,3731.8,3731.7,4.03574616]
[1760230275251,35.8965905,3731.8,3731.7,4.03574616]
[1760230275437,36.65060617,3731.8,3731.7,2.73574616]
[1760230275637,0.6336,3731.5,3731.1,6.08]
[1760230275964,30.0,3731.2,3731.1,6.08]
[1760230276120,32.3648185,3731.2,3731.1,6.08]
[1760230276315,32.9984185,3731.2,3731.1,6.08]
[1760230276521,36.43259718,3731.2,3731.1,6.08]
[1760230277352,36.70411291,3731.2,3731.1,6.08]
[1760230277953,36.70411291,3731.2,3731.1,7.31]
[1760230278258,36.36409441,3731.2,3731.1,7.31]
[1760230278429,2.6872,3731.1,3730.0,2.46]
[1760230278632,2.6872,3731.1,3729.6,21.83362463]
[1760230278633,2.68118079,3729.7,3729.6,14.29714356]
[1760230278836,21.88985654,3729.7,3729.6,11.61076243]
[1760230279133,21.88985654,3729.7,3729.6,6.23775073]
[1760230279333,22.31050197,3729.7,3729.6,0.86465228]
[1760230279656,2.68154027,3729.2,3729.1,3.1e-07]
[1760230279854,21.83814039,3729.2,3729.1,3.1e-07]
[1760230280026,21.93714039,3729.2,3729.1,3.1e-07]
[1760230280223,21.19630327,3729.2,3729.1,3.1e-07]
[1760230280423,21.80143175,3729.2,3729.1,3.1e-07]
[1760230280628,23.59660491,3729.2,3729.1,3.1e-07]
[1760230280824,22.40887196,3728.6,3728.5,1.6e-07]
[1760230281158,22.74248471,3728.6,3728.5,1.6e-07]
[1760230281463,22.84148471,3728.6,3728.5,1.6e-07]
[1760230282265,21.53034753,3728.6,3728.5,1.6e-07]
[1760230282435,21.80186326,3728.6,3728.5,1.6e-07]
[1760230282634,21.53034753,3728.6,3728.5,1.6e-07]
[1760230282834,17.881163,3728.6,3728.5,1.6e-07]
[1760230283559,17.881163,3728.6,3728.5,1.23000016]
[1760230283742,20.56313478,3728.6,3728.5,1.23000016]
[1760230283929,17.881163,3728.6,3728.5,1.23000016]
[1760230284132,18.514763,3728.6,3728.5,1.23000016]
[1760230284337,21.53034753,3728.6,3728.5,1.23000016]
[1760230284963,21.53034753,3728.6,3728.5,2.46000016]